bitfinex-derivatives/quotes_ETHF0:USTF0_20240905
["timestamp","ask_amount","ask_price","bid_price","bid_amount"]
[1725496345378,0.7687,2461.0,2460.8,1.59184878]
[1725496345575,0.7687,2461.0,2460.8,1.0496095]
[1725496347577,0.7687,2461.0,2460.9,0.94854676]
[1725496348186,0.7687,2461.0,2460.9,0.54217676]
[1725496348779,1.17505,2461.0,2460.8,1.0496095]
[1725496348978,1.17505,2461.0,2460.7,1.0496095]
[1725496349687,1.17505,2461.0,2460.8,0.54226007]
[1725496349885,1.17505,2461.0,2460.7,1.0496095]
[1725496349886,3.9287,2461.0,2460.7,1.0496095]
[1725496350188,3.5664,2460.8,2460.6,1.0496095]
[1725496350387,3.5664,2460.8,2460.7,0.54231295]
[1725496350685,3.16,2460.8,2460.7,0.54232216]
[1725496351079,3.16,2460.8,2460.6,1.0496095]
[1725496351692,0.40642,2460.6,2460.5,1.0496095]
[1725496351884,0.40642,2460.6,2460.5,0.54243809]
[1725496352079,0.40642,2460.6,2460.4,1.0496095]
[1725496352475,7.1538,2460.8,2460.4,1.0496095]
[1725496352681,0.363,2460.6,2460.5,1.59204884]
[1725496353082,0.363,2460.6,2460.5,0.54243934]
[1725496354488,0.363,2460.6,2460.5,1.59204884]
[1725496355190,0.363,2460.6,2460.5,0.54243934]
[1725496355887,0.363,2460.6,2460.5,1.59204884]
[1725496356288,0.40641,2460.7,2460.5,1.0496095]
[1725496356490,0.76961,2460.7,2460.4,1.0496095]
[1725496356686,0.3632,2460.7,2460.5,0.54245828]
[1725496356892,0.3632,2460.7,2460.5,0.40643]
[1725496357190,0.3632,2460.7,2460.6,0.54240179]
[1725496357389,3.16,2460.8,2460.6,0.54240179]
[1725496357592,3.16,2460.8,2460.6,0.3922]
[1725496358987,3.56639,2460.8,2460.6,0.3922]
[1725496359793,3.16,2460.8,2460.6,0.3922]
[1725496360689,0.4064,2460.7,2460.6,0.3922]
[1725496360896,3.56639,2460.8,2460.4,1.0496095]
[1725496361082,3.56639,2460.8,2460.5,0.54245002]
[1725496361395,3.56639,2460.8,2460.4,1.8490595]
[1725496361690,3.97738,2460.9,2460.5,0.94889199]
[1725496361888,3.97738,2460.9,2460.5,0.40643]
[1725496362089,3.97738,2460.9,2460.4,1.8490495]
[1725496362393,0.40639,2460.8,2460.5,0.54242218]
[1725496362597,0.40639,2460.8,2460.4,1.8490495]
[1725496362798,0.40639,2460.8,2460.5,0.54241924]
[1725496362988,0.40639,2460.8,2460.4,1.8490495]
[1725496363195,0.40639,2460.8,2460.5,0.54241223]
[1725496363394,0.40639,2460.8,2460.4,1.8490495]
[1725496363595,0.40639,2460.8,2460.5,0.54241819]
[1725496363789,0.40639,2460.8,2460.4,1.8490495]
[1725496363995,0.40639,2460.8,2460.5,0.54242053]
[1725496364193,0.40639,2460.8,2460.4,1.8490495]
[1725496364399,0.40639,2460.8,2460.5,0.54241508]
[1725496364590,0.40639,2460.8,2460.4,1.8490495]
[1725496364793,0.4064,2460.7,2460.5,0.54241586]
[1725496364999,0.4064,2460.8,2460.4,1.8490595]
[1725496365301,0.40641,2460.7,2460.5,0.5424337]
[1725496365597,0.40641,2460.7,2460.4,1.4426095]
[1725496367093,0.4064,2460.8,2460.4,1.4426095]
[1725496367685,3.77253109,2460.9,2460.4,1.4426095]
[1725496367686,3.77253109,2460.9,2460.4,1.8490595]
[1725496367898,0.40639,2460.8,2460.5,0.54252406]
[1725496368097,3.77253109,2460.9,2460.5,4.2574095]
[1725496368098,3.571,2460.9,2460.5,4.2574095]
[1725496368393,3.571,2460.9,2460.6,1.98588429]
[1725496368692,3.571,2460.9,2460.7,0.91437479]
[1725496368894,3.571,2460.9,2460.7,0.7783]
[1725496369095,3.571,2460.9,2460.8,0.3683]
[1725496372190,3.61411,2461.3,2461.0,0.40635]
[1725496372391,3.97171,2461.3,2461.0,0.40635]
[1725496372598,3.97171,2461.3,2461.1,0.3892]
[1725496372898,3.97171,2461.3,2461.2,0.3559]
[1725496373099,3.97171,2461.3,2461.2,0.7417]
[1725496374099,0.76391,2461.3,2461.2,0.7417]
[1725496374603,0.3576,2461.3,2461.2,0.7417]
[1725496375105,0.7639,2461.3,2461.0,0.40634]
[1725496375303,0.7639,2461.3,2461.0,0.76224]
[1725496375897,0.3576,2461.3,2461.1,0.40634]
[1725496376097,3.94319,2461.4,2461.2,0.40632]
[1725496376098,3.5369,2461.4,2461.2,0.40632]
[1725496376391,3.5369,2461.4,2461.3,0.3778]
[1725496376603,6.7447,2461.4,2461.3,0.3778]
[1725496376903,6.3678,2461.4,2461.3,0.3778]
[1725496377198,3.2078,2461.4,2461.3,0.3778]
[1725496377405,0.40627,2461.5,2461.3,0.3778]
[1725496377603,0.40627,2461.5,2461.4,0.373]
[1725496378502,3.16,2461.6,2461.4,0.373]
[1725496378503,3.56627,2461.6,2461.4,0.373]
[1725496378709,0.20563834,2462.2,2461.4,4.4354]
[1725496378895,0.3703,2462.1,2461.6,0.00609645]
[1725496379091,0.4062,2462.0,2461.6,1.46195595]
[1725496379297,3.56624,2461.7,2461.6,0.00609645]
[1725496380002,6.3678,2461.9,2461.6,0.00609645]
[1725496380213,0.40622,2461.8,2461.6,0.00609645]
[1725496380395,6.3678,2461.9,2461.6,0.00609645]
[1725496381212,6.77401,2461.9,2461.6,0.00609645]
[1725496381908,3.56621,2461.9,2461.6,0.00609645]
[1725496382302,0.40622,2461.8,2461.6,0.00609645]
[1725496383497,3.5237,2461.7,2461.6,0.00609645]
[1725496386306,11.20014,2461.7,2461.6,0.00609645]
[1725496387904,12.21574,2461.7,2461.6,0.00609645]
[1725496390707,7.67644,2461.7,2461.6,0.00609645]
[1725496390907,0.40624,2461.7,2461.6,0.00609645]
[1725496391917,1.32,2461.7,2461.6,0.00609645]
[1725496394013,3.5999,2462.0,2461.6,0.00609645]
[1725496394014,3.56621,2461.9,2461.6,0.00609645]
[1725496395607,0.40622,2461.8,2461.6,0.00609645]
[1725496395808,3.16,2461.9,2461.6,0.00609645]
[1725496396009,0.40622,2461.8,2461.6,0.00609645]
[1725496397417,0.40624,2461.7,2461.6,0.00609645]
[1725496397715,0.40623,2461.8,2461.6,0.00609645]
[1725496400918,3.56622,2461.9,2461.6,0.00609645]
[1725496401115,3.56622,2461.9,2461.6,0.41234645]
[1725496401116,3.16,2461.9,2461.6,0.41234645]
[1725496401411,3.16,2461.9,2461.7,0.736]
[1725496402007,3.56621,2461.9,2461.7,0.736]
[1725496402414,3.16,2461.9,2461.6,0.00609645]
[1725496403715,0.40622,2461.8,2461.6,0.00609645]
[1725496407303,0.40624,2461.7,2461.6,0.00609645]
[1725496407718,3.16,2461.9,2461.6,0.00609645]
[1725496408018,0.40624,2461.8,2461.6,0.00609645]
[1725496408622,0.40624,2461.7,2461.6,0.00609645]
[1725496409509,0.40632,2461.2,2461.1,0.095]
[1725496409718,0.40636,2461.0,2460.8,1.0496095]
[1725496410015,6.3678,2461.4,2460.6,0.7291]
[1725496410016,0.78188,2460.9,2460.6,0.7291]
[1725496410618,3.5664,2460.8,2460.6,0.3583]
[1725496411018,3.16,2460.8,2460.6,0.3583]
[1725496412015,0.78188,2460.9,2460.6,0.3583]
[1725496412216,0.00609645,2461.0,2460.6,3.97251]
[1725496412416,0.41246645,2461.0,2460.6,1.4079095]
[1725496412622,0.40637,2460.9,2460.6,1.4079095]
[1725496412816,0.40639,2460.8,2460.6,0.3583]
[1725496413018,0.77829,2460.8,2460.6,0.3583]
[1725496414915,0.3719,2460.8,2460.6,0.3583]
[1725496416224,0.77829,2460.8,2460.6,0.3583]
[1725496417731,0.4064,2460.7,2460.5,0.00609645]
[1725496417915,3.5319,2460.8,2460.5,0.00609645]
[1725496417916,2.09642,2460.6,2460.5,0.00609645]
[1725496420028,0.77642,2460.6,2460.5,0.00609645]
[1725496420430,0.37,2460.6,2460.5,0.00609645]
[1725496421226,0.77642,2460.6,2460.5,0.00609645]
[1725496421628,0.37,2460.6,2460.5,0.00609645]
[1725496424930,0.77642,2460.6,2460.5,0.00609645]
[1725496427125,1.79248,2460.6,2460.5,0.00609645]
[1725496429827,5.85648,2460.6,2460.5,0.00609645]
[1725496430038,5.85648,2460.6,2460.2,0.095]
[1725496430039,1.42265,2460.3,2460.2,0.095]
[1725496430228,1.01626,2460.1,2459.4,0.7637]
[1725496430433,3.16,2459.5,2459.4,0.7637]
[1725496430630,2.54990047,2459.5,2459.4,0.7637]
[1725496430938,3.56658,2459.7,2459.4,0.7637]
[1725496431129,3.16,2459.7,2459.4,0.7637]
[1725496431629,3.5194,2459.7,2459.4,0.7637]
[1725496432025,3.56661,2459.5,2459.3,0.00609645]
[1725496433334,0.3749,2459.4,2459.3,0.00609645]
[1725496435041,0.78152,2459.4,2459.3,0.00609645]
[1725496436835,0.3749,2459.4,2459.3,0.00609645]
[1725496438030,3.41371764,2459.6,2459.3,0.41273645]
[1725496438031,3.82031764,2459.6,2459.3,0.41273645]
[1725496438236,3.82031764,2459.6,2459.4,0.3661]
[1725496438441,3.82031764,2459.6,2459.5,0.3769]
[1725496438636,0.4066,2459.5,2459.4,0.3661]
[1725496440937,0.4066,2459.5,2459.3,0.00609645]
[1725496442645,3.61442,2459.4,2459.3,0.00609645]
[1725496442837,0.20591764,2459.6,2459.3,0.00609645]
[1725496443038,0.20591764,2459.6,2459.3,0.41272645]
[1725496443654,7.51438,2459.7,2459.3,0.00609645]
[1725496443949,7.51438,2459.7,2459.3,0.41272645]
[1725496445941,3.9478,2459.7,2459.4,0.40662]
[1725496446140,3.2078,2459.7,2459.5,0.3847]
[1725496446339,3.2078,2459.7,2459.6,0.7548]
[1725496447541,3.2078,2459.7,2459.6,1.16139]
[1725496447737,3.2078,2459.7,2459.6,0.7548]
[1725496447948,3.2078,2459.7,2459.4,0.4066]
[1725496448249,3.2078,2459.7,2459.5,0.4066]
[1725496448651,3.57265645,2459.8,2459.5,0.4066]
[1725496450344,3.57265645,2459.8,2459.4,0.7637]
[1725496450345,0.00609645,2459.8,2459.4,0.7637]
[1725496450545,0.00609645,2459.8,2459.7,0.40657]
[1725496450746,0.41264645,2459.8,2459.5,0.40659]
[1725496450953,3.57264645,2459.8,2459.4,1.1703]
[1725496451453,3.16609645,2459.8,2459.5,0.4066]
[1725496451652,3.57264645,2459.8,2459.5,0.4066]
[1725496453554,0.40657,2459.7,2459.4,1.17031]
[1725496454156,0.4066,2459.5,2459.4,0.379]
[1725496454456,0.4066,2459.5,2459.3,0.37359645]
[1725496454754,0.40659,2459.6,2459.3,0.78023645]
[1725496455052,0.4066,2459.5,2459.3,0.37359645]
[1725496456347,0.79929,2459.6,2459.3,0.37359645]
[1725496456751,0.4066,2459.5,2459.3,0.37359645]
[1725496457651,4.16170206,2459.6,2459.3,0.37359645]
[1725496458058,2.32170206,2459.6,2459.3,0.37359645]
[1725496459147,0.40661,2459.5,2459.3,0.37359645]
[1725496460356,2.1193,2459.6,2459.3,0.37359645]
[1725496460556,2.3209293,2459.6,2459.3,0.37359645]
[1725496460857,2.1193,2459.6,2459.3,0.37359645]
[1725496461050,0.3927,2459.6,2459.3,0.37359645]
[1725496461254,1.7026,2459.7,2459.5,0.4066]
[1725496461455,1.32,2459.7,2459.6,0.79859]
[1725496461763,0.40659,2459.6,2459.3,0.78021645]
[1725496461964,1.32,2459.5,2459.3,0.41271645]
[1725496462153,1.6797,2459.5,2459.3,0.41271645]
[1725496462659,1.6797,2459.5,2459.3,0.41272645]
[1725496462862,2.0863,2459.5,2459.3,0.00609645]
[1725496463856,0.40662,2459.4,2459.3,0.00609645]
[1725496464048,1.6971,2459.4,2459.3,0.00609645]
[1725496464848,0.3771,2459.4,2459.3,0.00609645]
[1725496467057,0.3771,2459.4,2459.3,0.41273645]
[1725496467258,1.6797,2459.5,2459.3,0.41273645]
[1725496467459,1.6875,2459.7,2459.3,0.00609645]
[1725496467656,1.32,2459.7,2459.6,0.40659]
[1725496468758,1.72657,2459.7,2459.5,1.16999]
[1725496468962,2.09407,2459.7,2459.5,1.16999]
[1725496469662,2.09407,2459.7,2459.5,0.7634]
[1725496470054,0.4066,2459.6,2459.3,0.41272645]
[1725496470365,0.4066,2459.6,2459.3,1.19582645]
[1725496470858,1.6875,2459.7,2459.3,1.19582645]
[1725496471055,1.6875,2459.7,2459.3,0.78919645]
[1725496471056,0.40661,2459.5,2459.3,0.78919645]
[1725496471561,0.3851,2459.4,2459.3,1.19583645]
[1725496471869,0.3851,2459.4,2459.3,1.73799854]
[1725496472162,0.3851,2459.4,2459.3,1.73788322]
[1725496472466,0.3851,2459.4,2459.3,0.54814322]
[1725496474665,0.3851,2459.4,2459.3,1.59793699]
[1725496475669,0.3851,2459.4,2459.3,2.12285009]
[1725496476262,0.3851,2459.4,2459.3,2.52949009]
[1725496476462,0.3851,2459.4,2459.3,2.88499009]
[1725496476869,1.32,2459.5,2459.3,2.88499009]
[1725496477067,1.32,2459.5,2459.4,1.95806161]
[1725496477268,1.32,2459.5,2459.4,1.27481434]
[1725496477568,1.32,2459.5,2459.4,2.84955364]
[1725496477959,1.32,2459.5,2459.4,2.3075393]
[1725496478168,1.32,2459.5,2459.4,2.32877774]
[1725496478464,1.7266,2459.5,2459.4,2.84961496]
[1725496478666,1.7266,2459.5,2459.4,1.27487566]
[1725496479369,1.32,2459.5,2459.4,1.27487566]
[1725496479561,1.7266,2459.5,2459.4,2.32873721]
[1725496479762,1.7266,2459.5,2459.4,0.54207566]
[1725496480569,1.32,2459.5,2459.4,0.54207566]
[1725496480767,1.17239,2459.6,2459.4,0.54207566]
[1725496481068,1.32,2459.5,2459.3,1.466588]
[1725496481464,1.32,2459.5,2459.4,1.59558965]
[1725496481765,1.32,2459.5,2459.4,1.96708965]
[1725496482573,1.32,2459.5,2459.4,2.4879674]
[1725496482865,1.32,2459.5,2459.4,0.9132281]
[1725496483062,1.32,2459.5,2459.4,2.4879674]
[1725496483460,1.32,2459.5,2459.4,0.9132281]
[1725496483766,1.32,2459.5,2459.4,2.4879674]
[1725496484268,1.32,2459.5,2459.4,1.96635146]
[1725496484760,1.32,2459.5,2459.4,1.42462336]
[1725496484960,1.32,2459.5,2459.4,1.96633024]
[1725496485971,1.32,2459.5,2459.4,1.42462336]
[1725496486166,1.32,2459.5,2459.4,1.96631075]
[1725496486768,1.32,2459.5,2459.4,2.48792669]
[1725496486968,1.32,2459.5,2459.4,1.96630927]
[1725496487670,1.32,2459.5,2459.4,1.42462188]
[1725496488178,1.32,2459.5,2459.4,1.59480213]
[1725496488374,1.32,2459.5,2459.4,1.98440213]
[1725496489569,1.32,2459.5,2459.4,1.98438004]
[1725496490766,0.3793,2459.6,2459.4,1.98438004]
[1725496490972,0.00609645,2459.8,2459.7,0.40657]
[1725496491172,0.00609645,2459.8,2459.7,0.54165816]
[1725496491372,1.32609645,2459.8,2459.7,1.59459104]
[1725496492174,1.32609645,2459.8,2459.7,2.00116104]
[1725496493871,1.32609645,2459.8,2459.7,2.00099642]
[1725496494266,1.32609645,2459.8,2459.7,2.00097609]
[1725496495377,0.00609645,2459.8,2459.7,2.00097609]
[1725496495677,0.00609645,2459.8,2459.7,6.06657609]
[1725496496681,0.00609645,2459.8,2459.7,6.58838251]
[1725496496979,0.00305751,2459.8,2459.7,6.58838251]
[1725496497684,0.00305751,2459.8,2459.7,6.58828299]
[1725496498183,0.00305751,2459.8,2459.7,6.06565172]
[1725496499871,0.00305751,2459.8,2459.7,5.01354369]
[1725496500073,0.00305751,2459.8,2459.7,6.06556186]
[1725496500284,0.00305751,2459.8,2459.7,5.01354369]
[1725496500487,0.00305751,2459.8,2459.7,6.06550488]
[1725496500678,0.00305751,2459.8,2459.7,5.11756119]
[1725496500984,0.00305751,2459.8,2459.7,1.9999391]
[1725496501377,0.00305751,2459.8,2459.7,1.5933691]
[1725496501585,0.00305751,2459.8,2459.7,0.54140791]
[1725496502177,1.32305751,2459.8,2459.7,0.54140791]
[1725496502487,0.40659,2459.6,2459.5,1.05196119]
[1725496502791,0.40659,2459.6,2459.5,0.54160109]
[1725496503173,0.79779,2459.6,2459.5,0.54160109]
[1725496505588,0.3912,2459.6,2459.5,0.54160109]
[1725496506181,0.3912,2459.6,2459.5,1.59356228]
[1725496506585,1.32,2459.7,2459.5,1.59359116]
[1725496506793,1.69,2459.7,2459.6,0.54162997]
[1725496507576,1.69,2459.7,2459.6,0.93332997]
[1725496508183,2.09657,2459.7,2459.6,0.93332997]
[1725496508379,6.16217,2459.7,2459.6,0.93332997]
[1725496508585,6.52337,2459.7,2459.6,0.54162997]
[1725496508773,0.40659,2459.6,2459.3,5.25505764]
[1725496508990,1.32,2459.5,2459.3,5.25505764]
[1725496509182,1.6999,2459.5,2459.3,5.25505764]
[1725496509481,2.1065,2459.5,2459.3,5.25505764]
[1725496509992,0.40662,2459.4,2459.3,0.00609645]
[1725496510387,0.40662,2459.4,2459.3,0.54812365]
[1725496510689,0.40662,2459.4,2459.3,0.00609645]
[1725496511896,0.40662,2459.4,2459.3,0.54814268]
[1725496513384,0.40662,2459.4,2459.3,0.00609645]
[1725496513582,0.40662,2459.4,2459.3,0.54838596]
[1725496514384,1.42324,2459.3,2459.2,1.05196119]
[1725496514579,0.40667,2459.1,2459.0,1.5747393]
[1725496514783,3.61447,2459.1,2459.0,1.5747393]
[1725496514983,3.98397,2459.1,2459.0,1.5747393]
[1725496515287,3.98397,2459.1,2458.7,1.05437157]
[1725496515288,0.4067,2459.0,2458.7,1.05437157]
[1725496515487,1.32,2458.8,2458.7,1.05437157]
[1725496515688,1.32,2458.8,2458.7,0.54270063]
[1725496515989,3.16,2458.8,2458.7,0.54270063]
[1725496516288,3.16,2458.8,2458.6,1.81536802]
[1725496516498,3.16,2458.8,2458.6,2.22211802]
[1725496516792,3.16,2458.8,2458.6,1.16774645]
[1725496516994,3.16,2458.8,2458.6,0.76099645]
[1725496517188,0.3695,2458.7,2458.6,0.00609645]
[1725496517696,0.3695,2458.7,2458.6,0.54882585]
[1725496517991,0.3695,2458.7,2458.6,0.54885843]
[1725496518190,0.3695,2458.7,2458.6,0.00609645]
[1725496519383,0.3695,2458.7,2458.6,0.41284645]
[1725496519688,0.3695,2458.7,2458.6,0.00609645]
[1725496528399,0.77623,2458.7,2458.6,0.00609645]
[1725496528608,5.86027,2458.7,2458.6,0.00609645]
[1725496528788,6.23647,2458.7,2458.6,0.00609645]
[1725496529189,12.23647,2458.7,2458.6,0.00609645]
[1725496530098,11.21963,2458.7,2458.6,0.00609645]
[1725496530489,12.23647,2458.7,2458.6,0.00609645]
[1725496530799,0.4068,2458.3,2458.2,0.095]
[1725496531092,0.40685,2458.0,2457.9,0.095]
[1725496531300,0.40687,2457.9,2457.4,0.095]
[1725496531512,0.40699,2457.2,2456.9,3.67893708]
[1725496531706,0.40699,2457.2,2456.8,2.47764885]
[1725496531707,3.16,2457.1,2456.8,2.47764885]
[1725496531991,3.16,2457.1,2456.8,0.37799645]
[1725496532386,6.3678,2457.1,2456.8,0.37799645]
[1725496532588,3.567,2457.1,2456.8,0.37799645]
[1725496532886,3.16,2457.1,2456.8,0.37799645]
[1725496533397,3.56701,2457.1,2456.8,0.37799645]
[1725496533599,3.16,2457.1,2456.8,0.37799645]
[1725496533791,3.16,2457.1,2456.8,0.78503645]
[1725496533999,3.16,2457.1,2456.8,0.37799645]
[1725496534387,3.16,2457.1,2456.8,0.78503645]
[1725496534591,3.16,2457.1,2456.9,0.40703]
[1725496536196,3.16609645,2457.3,2456.8,0.37799645]
[1725496536399,3.16609645,2457.3,2457.2,0.40698]
[1725496536400,0.00609645,2457.3,2457.2,0.40698]
[1725496536603,0.00609645,2457.3,2457.2,4.47658]
[1725496537293,0.00609645,2457.3,2457.2,0.40698]
[1725496537494,0.00203749,2457.3,2457.2,4.47658]
[1725496539891,0.00203749,2457.3,2457.2,0.40698]
[1725496540294,0.00203749,2457.3,2457.2,4.47658]
[1725496541404,0.00203749,2457.3,2457.2,10.47658]
[1725496541899,3.255,2457.8,2457.6,0.40691]
[1725496542103,3.16,2457.8,2457.6,0.40691]
[1725496542293,3.16,2457.8,2457.5,0.40693]
[1725496542893,3.16,2457.8,2457.6,0.40691]
[1725496544597,3.16,2457.8,2457.5,0.40692]
[1725496544903,3.16,2457.8,2457.6,0.40691]
[1725496545294,3.16,2457.8,2457.7,0.4069]
[1725496545494,3.16,2457.8,2457.6,0.4069]
[1725496545898,3.16,2457.8,2457.5,0.79962]
[1725496546095,3.16,2457.8,2457.6,0.40691]
[1725496546403,3.16,2457.8,2457.7,0.4069]
[1725496546798,0.00609645,2457.9,2457.8,0.40688]
[1725496547493,0.00609645,2457.9,2457.8,4.47568]
[1725496547904,0.095,2458.4,2457.8,13.2288]
[1725496547905,3.6178,2458.4,2457.8,13.2288]
[1725496548089,3.6178,2458.4,2458.3,0.4068]
[1725496548090,0.3628,2458.4,2458.3,0.4068]
[1725496549602,3.52969645,2458.6,2458.4,0.40678]
[1725496550794,3.52969645,2458.6,2458.1,0.74309645]
[1725496550795,3.52969645,2458.6,2458.2,0.4068]
[1725496551089,3.93644645,2458.6,2458.2,0.4068]
[1725496551293,3.52969645,2458.6,2458.2,0.4068]
[1725496551496,3.16,2458.4,2458.1,0.74309645]
[1725496551691,6.77462,2458.2,2458.1,0.00609645]
[1725496551899,3.56682,2458.2,2458.1,0.00609645]
[1725496552101,7.63482,2458.2,2458.1,0.00609645]
[1725496552301,8.00212,2458.2,2458.1,0.00609645]
[1725496552698,3.5273,2458.2,2458.1,0.00609645]
[1725496554608,8.20387877,2458.2,2458.1,0.00609645]
[1725496554801,3.56688,2457.9,2457.4,4.48534]
[1725496555107,3.575,2457.8,2457.4,1.16754]
[1725496555405,3.98189,2457.8,2457.4,0.7606]
[1725496555805,3.575,2457.8,2457.4,1.17364645]
[1725496556508,3.98189,2457.8,2457.4,0.76669645]
[1725496556708,3.98189,2457.8,2457.4,0.00609645]
[1725496556909,3.575,2457.8,2457.4,0.41304645]
[1725496557107,3.2078,2457.7,2457.4,0.41304645]
[1725496557505,0.3672,2457.8,2457.4,0.41304645]
[1725496557812,0.3672,2457.8,2457.5,0.40693]
[1725496557999,0.3672,2457.8,2457.4,0.00609645]
[1725496558304,3.16,2457.6,2457.4,0.00609645]
[1725496558508,0.3607,2457.5,2457.4,0.00609645]
[1725496560205,0.3607,2457.5,2457.4,0.41304645]
[1725496560406,3.5272,2457.8,2457.4,0.00609645]
[1725496560603,3.16,2458.0,2457.4,3.21389645]
[1725496560806,3.16,2458.0,2457.5,0.3816]
[1725496561005,3.56685,2458.0,2457.6,0.40691]
[1725496561406,3.16,2458.0,2457.7,0.4069]
[1725496562112,3.56685,2458.0,2457.6,0.40691]
[1725496562415,3.16,2457.8,2457.5,0.40692]
[1725496562603,3.16,2457.8,2457.4,0.00609645]
[1725496562803,0.40691,2457.7,2457.4,0.00609645]
[1725496563315,3.16,2457.8,2457.4,0.00609645]
[1725496563316,3.16,2457.5,2457.4,0.00609645]
[1725496564304,0.7267,2457.6,2457.4,0.41304645]
[1725496565111,0.7267,2457.6,2457.5,0.40693]
[1725496565301,3.16,2457.7,2457.6,0.40692]
[1725496565507,0.393,2457.8,2457.7,0.4069]
[1725496565703,3.16,2458.2,2457.7,3.2078]
[1725496565913,0.79981,2458.3,2457.9,0.40686]
[1725496566112,0.79981,2458.3,2457.8,1.52497]
[1725496566314,3.16,2458.1,2457.9,0.40686]
[1725496566507,3.16,2458.1,2457.8,1.52497]
[1725496566827,3.16,2458.1,2457.8,1.1181]
[1725496567107,0.393,2458.3,2458.2,0.40682]
[1725496567314,0.10109645,2458.6,2458.4,0.40678]
[1725496567505,0.00609645,2458.6,2458.4,0.40678]
[1725496567707,0.00609645,2458.6,2458.3,0.4068]
[1725496568105,3.16,2458.5,2458.0,3.2078]
[1725496568312,3.16,2458.5,2458.2,0.40681]
[1725496568511,3.16,2458.5,2458.0,4.26217157]
[1725496568815,3.16,2458.5,2458.3,0.4068]
[1725496569112,0.00609645,2458.6,2458.4,0.40678]
[1725496569812,0.00609645,2458.6,2458.0,4.26217157]
[1725496569813,0.00609645,2458.6,2458.5,0.40677]
[1725496570211,0.00609645,2458.6,2458.4,0.7745]
[1725496570412,0.00609645,2458.6,2458.4,1.1618]
[1725496571010,0.00609645,2458.6,2458.5,0.40677]
[1725496571411,0.00609645,2458.6,2458.4,1.1618]
[1725496571712,0.00609645,2458.6,2458.5,0.40677]
[1725496574211,0.00609645,2458.6,2458.5,4.47397]
[1725496574620,0.00609645,2458.6,2458.5,10.47397]
[1725496574918,3.16609645,2458.6,2458.5,4.47397]
[1725496575116,3.16609645,2458.6,2458.5,0.40677]
[1725496578312,0.00609645,2458.6,2458.5,0.40677]
[1725496589125,0.00609645,2458.6,2458.4,0.7784]
[1725496589332,0.00609645,2458.6,2458.4,1.18518]
[1725496589727,0.00609645,2458.6,2458.5,0.40677]
[1725496590132,0.00609645,2458.6,2458.5,4.47397]
[1725496592130,0.00609645,2458.6,2458.5,0.40677]
[1725496592821,3.16609645,2458.6,2458.2,4.26217157]
[1725496593020,0.7662,2458.5,2458.3,0.40679]
[1725496593432,0.7662,2458.5,2458.3,0.78429]
[1725496593632,0.7662,2458.5,2458.4,0.40678]
[1725496594225,3.16609645,2458.6,2458.5,0.40677]
[1725496594422,0.00609645,2458.6,2458.5,0.40677]
[1725496597344,0.00609645,2458.6,2458.5,3.61457]
[1725496599634,3.16609645,2458.6,2458.4,0.40678]
[1725496599837,0.3817,2458.5,2458.3,0.78429]
[1725496600038,0.3817,2458.5,2458.4,0.40678]
[1725496600336,0.3817,2458.5,2458.3,0.78429]
[1725496600642,0.3817,2458.5,2458.3,0.3775]
[1725496600939,0.3817,2458.5,2458.4,0.40678]
[1725496601140,0.3817,2458.5,2458.3,0.78429]
[1725496602438,0.3817,2458.5,2458.4,0.40678]
[1725496603939,0.00609645,2458.6,2458.4,0.40678]
[1725496604743,0.00609645,2458.6,2458.5,0.40677]
[1725496607942,0.00609645,2458.6,2458.5,2.00431284]
[1725496608144,0.00609645,2458.6,2458.5,0.94994826]
[1725496608340,0.00609645,2458.6,2458.5,2.00431983]
[1725496609646,0.00609645,2458.6,2458.5,2.52468756]
[1725496611044,0.00609645,2458.6,2458.5,0.94994826]
[1725496611247,0.00609645,2458.6,2458.5,3.04960066]
[1725496612540,0.00609645,2458.6,2458.5,7.11816618]
[1725496613047,0.00609645,2458.6,2458.5,3.04960066]
[1725496613244,0.00609645,2458.6,2458.5,7.11824677]
[1725496613438,0.00609645,2458.6,2458.5,7.11828912]
[1725496613634,0.00609645,2458.6,2458.5,6.57511086]
[1725496613835,0.00609645,2458.6,2458.5,7.11872731]
[1725496615245,0.00609645,2458.6,2458.5,6.71195731]
[1725496615549,0.37219645,2458.6,2458.5,2.64327581]
[1725496615754,0.37219645,2458.6,2458.5,6.71207193]
[1725496616044,0.37219645,2458.6,2458.5,6.71204898]
[1725496616244,0.00609645,2458.6,2458.5,2.64327581]
[1725496616644,0.00609645,2458.6,2458.5,6.71209621]
[1725496617050,0.29081645,2458.6,2458.5,2.64327581]
[1725496617246,0.00609645,2458.6,2458.5,2.64327581]
[1725496617840,0.00609645,2458.6,2458.5,2.0996524]
[1725496618248,0.00609645,2458.6,2458.5,2.64352667]
[1725496619349,0.00609645,2458.6,2458.5,6.99713879]
[1725496619555,0.00609645,2458.6,2458.5,6.71239879]
[1725496620456,0.00305783,2458.6,2458.5,6.99713879]
[1725496621646,0.00305783,2458.6,2458.5,6.99709547]
[1725496622447,0.00305783,2458.6,2458.5,6.71219492]
[1725496623053,0.00305783,2458.6,2458.5,2.13093606]
[1725496623054,1.32305783,2458.6,2458.5,2.13093606]
[1725496623251,1.70075783,2458.6,2458.5,2.13093606]
[1725496624053,0.38075783,2458.6,2458.5,2.13093606]
[1725496624449,0.38075783,2458.6,2458.5,1.58710511]
[1725496624753,0.38075783,2458.6,2458.5,2.13087489]
[1725496626852,3.54075783,2458.6,2458.5,2.13087489]
[1725496627855,3.54075783,2458.6,2458.5,1.60151158]
[1725496628353,3.54075783,2458.6,2458.5,2.13084205]
[1725496628354,0.00305783,2458.6,2458.5,2.13084205]
[1725496631363,0.00305783,2458.6,2458.5,2.41558205]
[1725496631856,0.00305783,2458.6,2458.5,3.29012934]
[1725496632351,0.00305783,2458.6,2458.5,5.25907912]
[1725496632660,0.00305783,2458.6,2458.5,5.25871109]
[1725496632846,0.00305783,2458.6,2458.5,7.8832766]
[1725496633053,0.00305783,2458.6,2458.5,5.25871109]
[1725496633752,0.00305783,2458.6,2458.5,2.65837384]